[Event "ESTCC U65 2018"]
[Site "Walbrzych"]
[Date "2018.04.19"]
[Round "6"]
[White "Dalling, Peter"]
[Black "Heikkila, Raine"]
[Result "0-1"]
[ECO "C44"]
[WhiteElo "1844"]
[BlackElo "1705"]
[Annotator "NA"]
[PlyCount "108"]
[EventDate "2018.??.??"]
[EventCountry "POL"]
[SourceTitle "playchess.com"]
[Source "ChessBase"]
[SourceQuality "1"]
[WhiteTeam "Sweden"]
[BlackTeam "Finland"]
[WhiteTeamCountry "SWE"]
[BlackTeamCountry "FIN"]
[TimeControl "40/5400+30:1800+30"]

1. e4 {[%emt 0:00:00]} e5 {[%emt 0:00:38]} 2. Nf3 {[%emt 0:00:00]} Nc6 {[%emt 0:00:25]} 3. c3 {[%emt 0:00:00]} h6 {[%emt 0:00:51]} 4. Bc4 {[%emt 0:00:28]} Qf6 {[%emt 0:01:23]} 5. d4 {[%emt 0:01:35]} d6 {[%emt 0:01:16]} 6. d5 {[%emt 0:01:30]} Nb8 {[%emt 0:00:31]} 7. Be3 {[%emt 0:01:14]} Ne7 {[%emt 0:02:45]} 8. Nbd2 {[%emt 0:01:54]} a6 {[%emt 0:00:34]} 9. Nf1 {[%emt 0:02:00]} Ng6 {[%emt 0:03:18]} 10. Ng3 {[%emt 0:02:54]} Bg4 {[%emt 0:00:28]} 11. Be2 {[%emt 0:00:19]} Nf4 {[%emt 0:00:44]} 12. Bxf4 {[%emt 0:01:11]} exf4 {[%emt 0:00:20]} 13. Nf1 {[%emt 0:01:08]} Be7 {[%emt 0:03:11]} 14. Qb3 {[%emt 0:06:09]} b6 {[%emt 0:01:14]} 15. N1d2 {[%emt 0:01:44]} O-O {[%emt 0:01:14]} 16. h3 {[%emt 0:04:59]} Bh5 {[%emt 0:00:34]} 17. Qc4 {[%emt 0:00:42]} Bd8 {[%emt 0:00:41]} 18. Qd4 {[%emt 0:07:39]} Qe7 {[%emt 0:02:29]} 19. O-O-O {[%emt 0:06:46]} Nd7 {[%emt 0:00:30]} 20. Rde1 {[%emt 0:00:12]} Qe8 {[%emt 0:01:37]} 21. Bd3 {[%emt 0:08:14]} Bf6 {[%emt 0:01:29]} 22. Qa4 {[%emt 0:01:34]} Nc5 {[%emt 0:00:47]} 23. Qc2 {[%emt 0:00:09]} Nxd3+ {[%emt 0:00:44]} 24. Qxd3 {[%emt 0:00:08]} Bg6 {[%emt 0:00:11]} 25. Qc4 {[%emt 0:01:25]} b5 {[%emt 0:01:42]} 26. Qe2 {[%emt 0:00:53]} Bh5 {[%emt 0:03:27]} 27. Qd3 {[%emt 0:00:51]} Bg6 {[%emt 0:05:11]} 28. Nd4 {[%emt 0:01:13]} Bxd4 {[%emt 0:01:27]} 29. Qxd4 {[%emt 0:01:14]} c5 {[%emt 0:00:50]} 30. dxc6 {[%emt 0:00:16]} Qxc6 {[%emt 0:00:57]} 31. Qd5 {[%emt 0:04:23]} Qc7 {[%emt 0:01:51]} 32. Nb3 {[%emt 0:02:40]} Rac8 {[%emt 0:01:37]} 33. Nd2 {[%emt 0:03:39]} Rfe8 {[%emt 0:00:42]} 34. f3 {[%emt 0:01:01]} Kh8 {[%emt 0:00:47]} 35. Kb1 {[%emt 0:01:10]} f6 {[%emt 0:00:34]} 36. Rc1 {[%emt 0:01:32]} Bh7 {[%emt 0:00:28]} 37. Rhd1 {[%emt 0:00:46]} Re5 {[%emt 0:00:22]} 38. Qd4 {[%emt 0:00:19]} d5 {[%emt 0:00:09]} 39. Ka1 {[%emt 0:00:42]} Bg8 {[%emt 0:00:55]} 40. exd5 {[%emt 0:00:00]} Rxd5 {[%emt 0:00:41]} 41. Qg1 {[%emt 0:03:39]} a5 {[%emt 0:00:50]} 42. Ne4 {[%emt 0:00:17]} a4 {[%emt 0:00:24]} 43. Rxd5 {[%emt 0:05:11]} Bxd5 {[%emt 0:00:12]} 44. Qd4 {[%emt 0:00:10]} Bg8 {[%emt 0:00:34]} 45. Rd1 {[%emt 0:01:51]} Qf7 {[%emt 0:00:19]} 46. b3 {[%emt 0:01:19]} axb3 {[%emt 0:00:10]} 47. Nd6 {[%emt 0:00:36]} b2+ {[%emt 0:00:32]} 48. Kxb2 {[%emt 0:00:34]} Qxa2+ {[%emt 0:00:22]} 49. Kc1 {[%emt 0:00:05]} Bb3 {[%emt 0:00:39]} 50. Qd3 {[%emt 0:01:18]} Bxd1 {[%emt 0:00:38]} 51. Kxd1 {[%emt 0:00:30]} Qb3+ {[%emt 0:01:42]} 52. Kd2 {[%emt 0:01:19]} Ra8 {[%emt 0:00:14]} 53. Qxb5 {[%emt 0:02:54]} Ra2+ {[%emt 0:02:16]} 54. Ke1 {[%emt 0:02:23]} Qxc3+ {[%emt 0:00:21]} 0-1

[Event "ESTCC U65 2018"]
[Site "Walbrzych"]
[Date "2018.04.19"]
[Round "6"]
[White "Patola, Eero"]
[Black "Gromark, Per-Olof"]
[Result "0-1"]
[ECO "B20"]
[WhiteElo "1823"]
[BlackElo "1901"]
[Annotator "NA"]
[PlyCount "68"]
[EventDate "2018.??.??"]
[EventCountry "POL"]
[SourceTitle "playchess.com"]
[Source "ChessBase"]
[SourceQuality "1"]
[WhiteTeam "Finland"]
[BlackTeam "Sweden"]
[WhiteTeamCountry "FIN"]
[BlackTeamCountry "SWE"]
[TimeControl "40/5400+30:1800+30"]

1. e4 c5 2. c4 Nc6 3. Nc3 g6 4. g3 Bg7 5. Bg2 a6 6. Nge2 Rb8 7. d3 b5 8. O-O e6 9. f4 d6 10. e5 Nd4 11. cxb5 axb5 12. Nxd4 cxd4 13. Nxb5 Rxb5 14. Bc6+ Bd7 15. Bxb5 Bxb5 16. Qb3 Bc6 17. Qc4 Bd5 18. Qxd4 Ne7 19. Be3 dxe5 20. fxe5 O-O 21. Bg5 Qd7 22. Bf6 Nf5 23. Qf2 Bh6 24. Rfe1 Bb7 25. g4 Qd5 26. Kf1 Qxd3+ 27. Re2 Qh3+ 28. Ke1 Qxg4 29. Rd1 Qb4+ 30. Rdd2 Rc8 31. Kd1 Bxd2 32. Rxd2 Qg4+ 33. Re2 Nd4 34. h3 Qxe2+ 0-1

[Event "ESTCC U65 2018"]
[Site "Walbrzych"]
[Date "2018.04.19"]
[Round "6"]
[White "Lindholm, Pertti"]
[Black "Andersson, Kenneth"]
[Result "0-1"]
[ECO "D06"]
[WhiteElo "1624"]
[BlackElo "1763"]
[Annotator "NA"]
[PlyCount "68"]
[EventDate "2018.??.??"]
[EventCountry "POL"]
[SourceTitle "playchess.com"]
[Source "ChessBase"]
[SourceQuality "1"]
[WhiteTeam "Finland"]
[BlackTeam "Sweden"]
[WhiteTeamCountry "FIN"]
[BlackTeamCountry "SWE"]
[TimeControl "40/5400+30:1800+30"]

1. d4 {[%emt 0:00:41]} d5 {[%emt 0:00:05]} 2. c4 {[%emt 0:00:25]} Nf6 {[%emt 0:00:21]} 3. Nc3 {[%emt 0:00:25]} c6 4. Bf4 Bf5 {[%emt 0:02:16]} 5. e3 {[%emt 0:01:13]} a6 {[%emt 0:00:31]} 6. Nf3 {[%emt 0:01:11]} e6 {[%emt 0:00:22]} 7. Be2 {[%emt 0:02:19]} Nbd7 8. Nh4 Bg6 {[%emt 0:07:22]} 9. Nxg6 {[%emt 0:01:07]} hxg6 {[%emt 0:05:01]} 10. Qb3 {[%emt 0:01:54]} Qb6 {[%emt 0:05:00]} 11. Qxb6 {[%emt 0:05:12]} Nxb6 {[%emt 0:00:23]} 12. c5 {[%emt 0:00:36]} Nbd7 {[%emt 0:00:50]} 13. O-O {[%emt 0:02:36]} Nh5 {[%emt 0:01:22]} 14. Rfe1 {[%emt 0:05:44]} Nxf4 {[%emt 0:02:04]} 15. exf4 {[%emt 0:00:04]} Be7 {[%emt 0:00:20]} 16. Bd3 {[%emt 0:01:00]} O-O 17. f5 gxf5 {[%emt 0:04:35]} 18. Bxf5 {[%emt 0:01:00]} Bf6 {[%emt 0:11:53]} 19. Bd3 {[%emt 0:05:07]} Bxd4 {[%emt 0:00:33]} 20. Na4 {[%emt 0:00:51]} Nxc5 {[%emt 0:01:12]} 21. Nxc5 {[%emt 0:03:30]} Bxc5 {[%emt 0:01:54]} 22. Re5 {[%emt 0:00:59]} Bd4 {[%emt 0:02:33]} 23. Rh5 {[%emt 0:00:36]} g6 {[%emt 0:00:18]} 24. Rh4 {[%emt 0:00:30]} e5 {[%emt 0:01:05]} 25. Rb1 {[%emt 0:00:53]} c5 {[%emt 0:01:35]} 26. b4 {[%emt 0:00:50]} c4 {[%emt 0:01:23]} 27. Bc2 {[%emt 0:00:27]} Rad8 {[%emt 0:04:34]} 28. Rd1 Bc3 {[%emt 0:01:24]} 29. a3 {[%emt 0:02:13]} d4 {[%emt 0:02:23]} 30. Bb1 {[%emt 0:01:41]} Rfe8 {[%emt 0:00:55]} 31. Rh3 {[%emt 0:01:17]} e4 {[%emt 0:01:44]} 32. Rh4 {[%emt 0:00:19]} d3 {[%emt 0:00:28]} 33. Rc1 {[%emt 0:01:23]} Bf6 {[%emt 0:01:39]} 34. Rh3 {[%emt 0:00:19]} c3 {[%emt 0:01:16]} 0-1

[Event "ESTCC U65 2018"]
[Site "Walbrzych"]
[Date "2018.04.20"]
[Round "7"]
[White "Tunik, Gennady"]
[Black "Wademark, Helge"]
[Result "1-0"]
[ECO "D26"]
[WhiteElo "2351"]
[BlackElo "2005"]
[Annotator "NA"]
[PlyCount "37"]
[EventDate "2018.??.??"]
[EventCountry "POL"]
[SourceTitle "playchess.com"]
[Source "ChessBase"]
[SourceQuality "1"]
[WhiteTeam "Russia"]
[BlackTeam "Sweden"]
[WhiteTeamCountry "RUS"]
[BlackTeamCountry "SWE"]
[TimeControl "40/5400+30:1800+30"]

{[%evp 18,37,22,32767,39,47,33,43,32767,17,26,23,25,25,32767,32767,32767,32767,299,32767,32767,315]} 1. d4 {[%emt 0:00:00]} d5 {[%emt 0:00:14]} 2. c4 {[%emt 0:00:00]} dxc4 {[%emt 0:00:46]} 3. Nf3 {[%emt 0:00:05]} Nf6 {[%emt 0:00:03]} 4. e3 {[%emt 0:00:15]} e6 {[%emt 0:00:34]} 5. Bxc4 {[%emt 0:00:09]} a6 {[%emt 0:00:02]} 6. O-O {[%emt 0:00:35]} c5 {[%emt 0:01:17]} 7. dxc5 {[%emt 0:00:13]} Qxd1 {[%emt 0:03:05]} 8. Rxd1 {[%emt 0:00:04]} Bxc5 {[%emt 0:00:14]} 9. Nbd2 {[%emt 0:00:24]} b5 {[%emt 0:05:59] LiveBook: 12 Games D27: Queen's Gambit Accepted: Classical main line: 7 e4!? and 7 a4} (9... Nbd7 10. Be2 b6 11. Nc4 Bb7 12. b3 O-O 13. Bb2 Rfd8 14. Rac1 Nf8 15. Bd4 Bxd4 16. Nxd4 N8d7 17. Bf3 Bxf3 18. gxf3 Rac8 19. Nd6 Rxc1 20. Rxc1 Nc5 21. Nc4 {1-0 (60) Akobian,V (2647)-Nguyen,N (2630) Riadh 2017}) 10. Be2 {[%emt 0:00:15]} Bb7 {[%emt 0:00:11]} 11. a4 {[%emt 0:00:45]} b4 {[%emt 0:04:25]} 12. Nb3 {[%emt 0:01:22]} Be7 {[%emt 0:03:25]} 13. Ne5 $146 {[%emt 0:06:21]} ({White should play} 13. Bd2 $16) ({Find the theoretical novelty and annotate with similar games:} 13. Na5 Bd5 14. Nd4 Bd8 15. Nc4 {1-0 (28) Pogorelov,R (2453)-Ayza Ballester,J (2289) La Pobla de Lillet 2002}) 13... Nbd7 {[%emt 0:04:43]} 14. Nc4 {[%emt 0:03:45]} O-O {[%emt 0:13:02]} 15. Bd2 {[%emt 0:04:08]} Nd5 {[%emt 0:08:18]} 16. Nca5 {[%emt 0:02:42]} Bc8 {[%emt 0:01:35]} 17. e4 {[%emt 0:00:32]} N5b6 {[%emt 0:05:28]} 18. Nc6 {[%emt 0:00:30]} Bf6 {[%emt 0:01:27]} 19. a5 $18 {[%emt 0:00:21]} 1-0

[Event "ESTCC U65 2018"]
[Site "Walbrzych"]
[Date "2018.04.20"]
[Round "7"]
[White "Westerinen, Heikki M J"]
[Black "Buchal, Stephan"]
[Result "1/2-1/2"]
[ECO "B06"]
[WhiteElo "2308"]
[BlackElo "2310"]
[Annotator "ChessBase"]
[PlyCount "48"]
[EventDate "2018.??.??"]
[EventCountry "POL"]
[SourceTitle "playchess.com"]
[Source "ChessBase"]
[SourceQuality "1"]
[WhiteTeam "Finland"]
[BlackTeam "Germany"]
[WhiteTeamCountry "FIN"]
[BlackTeamCountry "GER"]
[TimeControl "40/5400+30:1800+30"]

1. e4 {[%emt 0:00:00]} g6 {[%emt 0:00:07]} 2. d4 {[%emt 0:00:00]} Bg7 {[%emt 0:00:10]} 3. Nc3 {[%emt 0:01:03]} d6 {[%emt 0:00:16]} 4. f4 {[%emt 0:02:39]} Nf6 {[%emt 0:01:27]} 5. a3 {[%emt 0:00:27]} O-O {[%emt 0:02:37]} 6. Nf3 {[%emt 0:00:24]} Na6 {[%emt 0:01:37]} 7. Bc4 {[%emt 0:07:25]} Nxe4 {[%emt 0:04:17]} 8. Bxf7+ {[%emt 0:09:15]} Rxf7 {[%emt 0:00:16]} 9. Nxe4 {[%emt 0:00:11]} Bf5 {[%emt 0:18:21]} 10. Nfg5 {[%emt 0:07:04]} Rf8 {[%emt 0:07:18]} 11. Ng3 {[%emt 0:00:40]} Qd7 {[%emt 0:03:54]} 12. Nxf5 {[%emt 0:09:06]} Qxf5 {[%emt 0:09:47]} 13. Qe2 {[%emt 0:07:18]} Rae8 {[%emt 0:13:17]} 14. Qe6+ {[%emt 0:11:51]} Kh8 {[%emt 0:04:21]} 15. Qxf5 {[%emt 0:01:39]} gxf5 {[%emt 0:02:51]} 16. Ne6 {[%emt 0:01:43]} Rf6 {[%emt 0:02:17]} 17. d5 {[%emt 0:02:16]} c6 {[%emt 0:05:18]} 18. c4 {[%emt 0:01:49]} Nc5 {[%emt 0:01:49]} 19. Nxg7 {[%emt 0:09:31]} Kxg7 {[%emt 0:00:00]} 20. Be3 {[%emt 0:01:34]} Rg6 {[%emt 0:07:37]} 21. O-O {[%emt 0:06:49]} Ne4 {[%emt 0:02:21]} 22. b4 {[%emt 0:04:56]} a6 {[%emt 0:01:32]} 23. Rfd1 {[%emt 0:01:33]} Kf7 {[%emt 0:00:26]} 24. Rac1 {[%emt 0:01:33]} e6 {[%emt 0:03:19]} 1/2-1/2

[Event "ESTCC U65 2018"]
[Site "Walbrzych"]
[Date "2018.04.20"]
[Round "7"]
[White "Baum, Bernd"]
[Black "Hurme, Harri"]
[Result "1/2-1/2"]
[ECO "A10"]
[WhiteElo "2290"]
[BlackElo "2229"]
[Annotator "NA"]
[PlyCount "113"]
[EventDate "2018.??.??"]
[EventCountry "POL"]
[SourceTitle "playchess.com"]
[Source "ChessBase"]
[SourceQuality "1"]
[WhiteTeam "Germany"]
[BlackTeam "Finland"]
[WhiteTeamCountry "GER"]
[BlackTeamCountry "FIN"]
[TimeControl "40/5400+30:1800+30"]

1. c4 {[%emt 0:00:00]} g6 {[%emt 0:00:13]} 2. g3 {[%emt 0:00:29]} Bg7 {[%emt 0:00:17]} 3. Bg2 {[%emt 0:00:06]} Nf6 {[%emt 0:00:37]} 4. Nc3 {[%emt 0:00:16]} c6 {[%emt 0:01:58]} 5. e4 {[%emt 0:02:39]} e5 {[%emt 0:02:12]} 6. Nge2 {[%emt 0:01:07]} O-O {[%emt 0:01:39]} 7. O-O {[%emt 0:00:13]} d6 {[%emt 0:00:35] LiveBook: 138 Games} 8. d3 {[%emt 0:00:09]} a6 {[%emt 0:02:30]} 9. h3 {[%emt 0:01:59]} b5 {[%emt 0:00:47]} 10. a3 {[%emt 0:05:37]} Nbd7 {[%emt 0:02:19] A24: English Opening vs King's Indian: Lines without ...Nc6} 11. Be3 {[%emt 0:03:09]} Rb8 {[%emt 0:03:52]} 12. Rb1 {[%emt 0:12:45]} Nc5 $146 {[%emt 0:06:03]} (12... Re8 $11) ({Predecessor:} 12... Bb7 13. Kh2 d5 14. exd5 cxd5 15. cxd5 Nb6 16. Ne4 Bxd5 17. N2c3 Nxe4 18. dxe4 {½-½ (31) Boros,D (2485)-Strunski,A (2366) Pardubice 2012}) 13. f4 {[%emt 0:09:23]} (13. d4 $14 Ne6 14. d5 cxd5 15. exd5 (15. cxd5 Nc5 $14)) 13... Nfd7 {[%emt 0:10:20]} ({Better is} 13... exf4 $15 14. gxf4 bxc4) 14. f5 {[%emt 0:02:48]} Nb6 {[%emt 0:08:26]} 15. b3 {[%emt 0:01:19]} (15. b4 $5 {[%cal Rb4c5]} Nca4 16. Nxa4 Nxa4 17. g4 $16) 15... Bd7 {[%emt 0:02:02]} ({Black should play} 15... bxc4 $14 16. dxc4 (16. bxc4 Rb7 $11) 16... Qe7) 16. Qd2 {[%emt 0:04:01]} a5 {[%emt 0:02:52]} 17. cxb5 {[%emt 0:07:14]} cxb5 {[%emt 0:00:27]} 18. b4 {[%emt 0:05:50]} axb4 {[%emt 0:01:13]} 19. axb4 {[%emt 0:00:53]} Nca4 {[%emt 0:00:52]} 20. g4 {[%emt 0:03:33]} f6 {[%emt 0:02:47]} 21. Kh2 {[%emt 0:06:18]} Bc6 {[%emt 0:03:44]} 22. Rbc1 {[%emt 0:02:15]} Rc8 {[%emt 0:01:28]} 23. Rc2 {[%emt 0:07:42]} Qd7 {[%emt 0:02:02]} 24. Rfc1 {[%emt 0:00:33]} Bb7 {[%emt 0:00:37]} 25. Nxa4 Nxa4 {[%emt 0:00:19]} 26. d4 {[%emt 0:04:18]} gxf5 {[%emt 0:03:50]} 27. gxf5 {[%emt 0:00:00]} d5 {[%emt 0:01:13]} 28. exd5 {[%emt 0:05:04]} Qxf5 {[%emt 0:01:16]} 29. Ng3 {[%emt 0:00:30]} Qd7 {[%emt 0:01:18]} 30. dxe5 {[%emt 0:00:25]} fxe5 {[%emt 0:00:25]} 31. Be4 {[%emt 0:04:39]} Rxc2 {[%emt 0:01:47]} 32. Rxc2 {[%emt 0:00:26]} Bc8 {[%emt 0:00:47]} 33. Qg2 {[%emt 0:00:56]} Kh8 {[%emt 0:00:55]} 34. Rc1 {[%emt 0:03:43]} Nb2 {[%emt 0:02:34]} 35. Rxc8 {[%emt 0:01:17]} Qxc8 36. Qxb2 Qc4 {[%emt 0:02:53]} 37. Qc2 {[%emt 0:01:55]} Rc8 {[%emt 0:00:46]} (37... Qxc2+ $142 38. Bxc2 Bh6) 38. Qxc4 {[%emt 0:00:57]} (38. Qd1 $142) 38... Rxc4 {[%emt 0:00:24]} 39. Bc5 {[%emt 0:00:16]} Bh6 {[%emt 0:01:35]} 40. d6 {[%emt 0:02:03]} Bg5 {[%emt 0:31:21]} 41. Kg2 {[%emt 0:04:45]} h5 {[%emt 0:00:00]} 42. Bd3 {[%emt 0:06:35]} Rc3 {[%emt 0:00:00]} 43. Bf5 {[%emt 0:00:34]} h4 {[%emt 0:00:00]} 44. Ne2 {[%emt 0:03:52]} Rb3 {[%emt 0:00:00]} 45. Kf2 {[%emt 0:05:20]} Kg7 {[%emt 0:00:00]} 46. Ng1 {[%emt 0:03:38]} Kf6 {[%emt 0:00:00]} 47. Bg4 {[%emt 0:00:21]} e4 {[%emt 0:00:00]} 48. d7 {[%emt 0:01:47]} Ke5 {[%emt 0:00:00]} 49. Be2 {[%emt 0:06:56]} Rb2 {[%emt 0:00:00]} 50. Be3 $2 {[%emt 0:00:51]} (50. Kf1 $18) 50... Bd8 {[%emt 0:00:00]} 51. Bc5 {[%emt 0:01:06]} Rd2 $11 {[%emt 0:00:00] [#]} 52. Ke1 $1 {[%emt 0:00:42]} Rxd7 {[%emt 0:00:00]} 53. Bxb5 {[%emt 0:00:04]} Rb7 {[%emt 0:00:00]} 54. Ba6 {[%emt 0:00:47]} Rd7 {[%emt 0:00:00]} 55. Ne2 {[%emt 0:01:00]} Be7 {[%emt 0:00:00]} 56. Bc8 {[%emt 0:01:34]} Rd8 {[%emt 0:00:00]} 57. Bxe7 {[%emt 0:00:37]} 1/2-1/2

[Event "ESTCC U65 2018"]
[Site "Walbrzych"]
[Date "2018.04.20"]
[Round "7"]
[White "Vucenovic, Dragomir"]
[Black "Giulian, Philip M"]
[Result "1/2-1/2"]
[ECO "D02"]
[WhiteElo "2248"]
[BlackElo "2124"]
[Annotator "NA"]
[PlyCount "33"]
[EventDate "2018.??.??"]
[EventCountry "POL"]
[SourceTitle "playchess.com"]
[Source "ChessBase"]
[SourceQuality "1"]
[WhiteTeam "Switzerland"]
[BlackTeam "Scotland"]
[WhiteTeamCountry "SUI"]
[BlackTeamCountry "SCO"]
[TimeControl "40/5400+30:1800+30"]

{[%evp 17,33,-4,32767,-18,-21,-21,0,-18,0,-11,32767,-2,0,32767,-15,-44,32767,-22]} 1. d4 {[%emt 0:00:00]} d5 {[%emt 0:00:06]} 2. Nf3 {[%emt 0:00:00]} e6 {[%emt 0:00:05]} 3. g3 {[%emt 0:00:00]} Nf6 {[%emt 0:00:09]} 4. Bg2 {[%emt 0:00:14]} b5 {[%emt 0:00:04]} 5. O-O {[%emt 0:00:19]} Bb7 {[%emt 0:00:14]} 6. Bg5 {[%emt 0:01:33]} Nbd7 {[%emt 0:00:56]} 7. Nbd2 {[%emt 0:00:43]} c5 {[%emt 0:01:05]} 8. c3 {[%emt 0:00:22]} Be7 {[%emt 0:00:36]} 9. a4 {[%emt 0:04:42]} b4 {[%emt 0:01:27]} 10. Ne5 {[%emt 0:06:49]} bxc3 {[%emt 0:09:55]} 11. bxc3 {[%emt 0:00:18]} cxd4 {[%emt 0:00:06]} 12. Nxd7 {[%emt 0:05:45]} Nxd7 {[%emt 0:03:31]} 13. Bxe7 {[%emt 0:00:12]} Qxe7 {[%emt 0:00:05]} 14. cxd4 {[%emt 0:00:25]} O-O {[%emt 0:00:19]} 15. e4 {[%emt 0:02:34]} dxe4 {[%emt 0:02:48]} 16. Bxe4 {[%emt 0:03:57]} Bxe4 {[%emt 0:00:57]} 17. Nxe4 $11 {[%emt 0:00:04]} 1/2-1/2

[Event "ESTCC U65 2018"]
[Site "Walbrzych"]
[Date "2018.04.20"]
[Round "7"]
[White "Ackermann, Hans Werner"]
[Black "Meskanen, Vesa"]
[Result "1-0"]
[ECO "A05"]
[WhiteElo "2211"]
[BlackElo "2066"]
[Annotator "NA"]
[PlyCount "45"]
[EventDate "2018.??.??"]
[EventCountry "POL"]
[SourceTitle "playchess.com"]
[Source "ChessBase"]
[SourceQuality "1"]
[WhiteTeam "Germany"]
[BlackTeam "Finland"]
[WhiteTeamCountry "GER"]
[BlackTeamCountry "FIN"]
[TimeControl "40/5400+30:1800+30"]

1. Nf3 {[%emt 0:00:00]} Nf6 {[%emt 0:00:20]} 2. c4 {[%emt 0:00:09]} g6 {[%emt 0:00:21]} 3. b3 {[%emt 0:00:06]} Bg7 {[%emt 0:00:30]} 4. Bb2 {[%emt 0:00:05]} O-O {[%emt 0:00:17]} 5. g3 {[%emt 0:00:34]} c6 {[%emt 0:00:43]} 6. Bg2 {[%emt 0:00:24]} d5 {[%emt 0:00:57]} 7. O-O {[%emt 0:00:06]} Re8 {[%emt 0:03:35]} 8. Qc2 {[%emt 0:04:22]} Bf5 {[%emt 0:05:38]} 9. d3 {[%emt 0:00:52]} Na6 {[%emt 0:19:33]} 10. Nbd2 {[%emt 0:04:05]} Nb4 {[%emt 0:06:15]} 11. Qc1 {[%emt 0:01:09]} a5 {[%emt 0:07:13]} (11... Bxd3 $5 12. Qc3 (12. exd3 Nxd3 13. Qb1 Nxb2 $15) 12... Bxe2 13. Qxb4 Bxf1 14. Rxf1 Qb6 $14) 12. a3 {[%emt 0:03:55]} Na6 {[%emt 0:00:22]} 13. Ra2 $14 {[%emt 0:00:04]} b5 {[%emt 0:02:20]} 14. e4 {[%emt 0:20:13]} dxe4 {[%emt 0:07:02]} 15. dxe4 {[%emt 0:00:19]} Nxe4 {[%emt 0:04:34]} 16. Bxg7 {[%emt 0:00:26]} Kxg7 {[%emt 0:00:15]} 17. Nh4 {[%emt 0:00:14]} Qd3 {[%emt 0:07:13]} 18. Nxe4 {[%emt 0:01:35]} Bxe4 {[%emt 0:03:27]} 19. Rd2 {[%emt 0:00:46]} Qxb3 {[%emt 0:03:07]} 20. Bxe4 {[%emt 0:00:56]} Rac8 {[%emt 0:00:31]} 21. cxb5 {[%emt 0:01:13]} cxb5 {[%emt 0:00:19]} 22. Qa1+ {[%emt 0:00:03]} Qc3 {[%emt 0:03:07]} 23. Bb7 {[%emt 0:00:25]} 1-0

[Event "ESTCC U65 2018"]
[Site "Walbrzych"]
[Date "2018.04.20"]
[Round "7"]
[White "Vinke, Dietmar"]
[Black "Kierzek, Matthias"]
[Result "1/2-1/2"]
[ECO "D18"]
[WhiteElo "2170"]
[BlackElo "2272"]
[Annotator "NA"]
[PlyCount "64"]
[EventDate "2018.??.??"]
[EventCountry "POL"]
[SourceTitle "playchess.com"]
[Source "ChessBase"]
[SourceQuality "1"]
[WhiteTeam "Finland"]
[BlackTeam "Germany"]
[WhiteTeamCountry "FIN"]
[BlackTeamCountry "GER"]
[TimeControl "40/5400+30:1800+30"]

1. d4 {[%emt 0:00:00]} d5 {[%emt 0:00:08]} 2. c4 {[%emt 0:00:00]} c6 {[%emt 0:00:05]} 3. Nf3 {[%emt 0:00:00]} Nf6 {[%emt 0:00:12]} 4. Nc3 {[%emt 0:00:01]} dxc4 {[%emt 0:00:14]} 5. a4 {[%emt 0:00:17]} Bf5 {[%emt 0:00:10]} 6. e3 {[%emt 0:00:31]} e6 {[%emt 0:00:17]} 7. Bxc4 {[%emt 0:00:14]} Bb4 {[%emt 0:00:08]} 8. O-O {[%emt 0:00:15]} Nbd7 {[%emt 0:00:10]} 9. Qe2 {[%emt 0:00:18]} O-O {[%emt 0:00:21]} 10. e4 {[%emt 0:00:21]} Bg6 {[%emt 0:00:03]} 11. Bd3 {[%emt 0:00:29]} Bh5 {[%emt 0:00:30]} 12. e5 {[%emt 0:00:31]} Nd5 {[%emt 0:00:06]} 13. Nxd5 {[%emt 0:00:07]} cxd5 {[%emt 0:00:07]} 14. Qe3 {[%emt 0:00:11]} Re8 {[%emt 0:01:12]} 15. Ne1 {[%emt 0:13:34]} Bg6 {[%emt 0:04:20]} 16. Bxg6 {[%emt 0:05:19]} hxg6 {[%emt 0:00:06] LiveBook: 7 Games} 17. Nd3 {[%emt 0:00:08]} Be7 {[%emt 0:04:20]} 18. Bd2 {[%emt 0:19:19]} Rc8 {[%emt 0:02:08]} 19. a5 {[%emt 0:08:16]} Qc7 {[%emt 0:12:39]} 20. Rfc1 {[%emt 0:01:24]} Qb8 $14 {[%emt 0:00:59]} 21. Rxc8 {[%emt 0:22:25]} Rxc8 {[%emt 0:00:11]} 22. Rc1 {[%emt 0:00:04]} Rxc1+ {[%emt 0:01:19]} 23. Nxc1 {[%emt 0:00:20]} b6 {[%emt 0:13:36]} 24. Qb3 {[%emt 0:03:10]} bxa5 {[%emt 0:10:24]} 25. Qxb8+ {[%emt 0:03:31]} Nxb8 {[%emt 0:00:05]} 26. Bxa5 {[%emt 0:00:05]} Nc6 {[%emt 0:00:40]} 27. Bc3 {[%emt 0:00:04]} Kf8 {[%emt 0:17:41]} 28. Kf1 {[%emt 0:00:07]} Ke8 {[%emt 0:00:43]} 29. Ke2 {[%emt 0:00:24]} Kd7 {[%emt 0:00:25]} 30. Kd3 {[%emt 0:05:43]} Kc7 {[%emt 0:01:10]} 31. f4 {[%emt 0:00:07]} Kb6 {[%emt 0:05:28]} 32. g4 {[%emt 0:03:44]} Nb4+ {[%emt 0:05:21]} 1/2-1/2